Cogmind - Beta 13 @@@ ROGUE MODE // 2024.04.22 @ 19:43:44 Player: ThatBishHoly Result: Destroyed by X-57 Shotgunner with Shotgun Performance ------------- Evolutions (2) 1000 Regions Visited (3) 600 Robots Destroyed (33) 165 Value Destroyed (932) 932 Prototype IDs (0) 0 Alien Tech Used (0) 0 Bonus (0) 0 TOTAL SCORE: 2697 Bonus ------- None Cogmind --------- Core Integrity 0/550 Matter 256/300 Energy 66/100 System Corruption 0% Temperature Cool (0) Movement Core (50) Location -8/Materials Parts ------- > --- POWER (2) -------- (None) > --- PROPULSION (3) --- (None) > --- UTILITY (2) ------ Advanced ECM Suite > --- WEAPON (4) ------- (None) > --- INVENTORY (5) ---- Target Analyzer Armor Integrity Analyzer Hacking Suite Peak State ------------ > --- POWER ------------ Improved Ion Engine Improved Ion Engine > --- PROPULSION ------- Improved Treads Improved Treads Improved Treads > --- UTILITY ---------- Huge Storage Unit Power Shielding > --- WEAPON ----------- Heavy Assault Rifle Autogun Grenade Launcher Flail > --- INVENTORY -------- Improved Treads Gravmag System Gravmag System Gravmag System Gravmag System Improved Sensor Array Target Analyzer Armor Integrity Analyzer Advanced ECM Suite Reflective Plating Hacking Suite Hacking Suite [Rating: 23] Favorites ----------- Power Improved Ion Engine Engine Improved Ion Engine Propulsion Improved Treads Treads Improved Treads Hover Unit Gravmag System Utility Power Shielding Device Advanced ECM Suite Storage Medium Storage Unit Protection Power Shielding Weapon Grenade Launcher Energy Gun EM Pulse Gun Ballistic Gun Heavy Assault Rifle Launcher Grenade Launcher Impact Weapon Flail Build | -11 -10 -9 -8 ------- Run | Yrd Mat Mat Mat Slots Evolved 4 | . . 2 2 Power 1 | . . 1 . Propulsion 1 | . . . 1 Utility . | . . . . Weapon 2 | . . 1 1 Parts Attached 29 | 5 7 2 15 Power 3 | 1 . 1 1 Engine 3 | 1 . 1 1 Core . | . . . . Reactor . | . . . . Propulsion 11 | 2 2 . 7 Treads 7 | 2 2 . 3 Leg . | . . . . Wheel . | . . . . Hover 4 | . . . 4 Flight . | . . . . Utility 6 | . 2 . 4 Device 2 | . . . 2 Storage 2 | . 1 . 1 Processor . | . . . . Hackware . | . . . . Protection 2 | . 1 . 1 Artifact . | . . . . Weapon 9 | 2 3 1 3 Energy Gun 2 | 1 1 . . Energy Cannon . | . . . . Ballistic Gun 3 | 1 . . 2 Ballistic Cannon . | . . . . Launcher 3 | . 2 1 . Special Weapon . | . . . . Impact Weapon 1 | . . . 1 Slashing Weapon . | . . . . Piercing Weapon . | . . . . Special Melee Weapon . | . . . . Unidentified Prototypes . | . . . . Parts Lost 18 | . . . 18 Power 3 | . . . 3 Propulsion 7 | . . . 7 Utility 2 | . . . 2 Weapon 6 | . . . 6 Highest Loss Streak 11 | . . . 11 To Critical Strikes 1 | . . . 1 Average Slot Usage (%) 85 | . 87 95 81 Engine 15 | . 14 19 15 Treads 23 | . 28 22 22 Storage 9 | . 12 11 7 Protection 7 | . 4 11 7 Energy Gun 6 | . 13 11 2 Ballistic Gun 3 | . . . 7 Launcher 11 | . 13 19 8 Impact Weapon 4 | . . . 7 Naked Turns . | . . . . Heaviest Build 106 | 9 21 31 106 Greatest Support 69 | 40 46 46 69 Greatest Overweight (x) 4 | . . . 4 Average Overweight (x) . | . . . . Largest Inventory Capacity 25 | 5 10 10 25 Average Capacity 15 | 5 9 10 21 Most Carried 14 | 5 7 6 14 Average Carried 6 | . 3 4 9 Final Capacity 10 | 5 10 10 5 Final Carried 5 | . 5 5 3 Class Distribution -------------------- 69% | Mutant 27% | Bomber 3% | Tank Dominant Class ---------------- Mutant | -10/Materials Bomber | -9/Materials Mutant | -8/Materials Resources | -11 -10 -9 -8 ----------- Run | Yrd Mat Mat Mat Matter Collected 760 | 250 160 199 151 Remotely . | . . . . Salvage Created 817 | . 253 386 178 Parts 58 | . 12 31 15 Haulers Intercepted . | . . . . Recyclers Shooed 1 | . . 1 . Parts Field Recycled . | . . . . Retrieved Matter . | . . . . Parts Self-Destructed . | . . . . Prevented . | . . . . Kills | -11 -10 -9 -8 ------- Run | Yrd Mat Mat Mat Combat Hostiles Destroyed 27 | . 7 13 7 Melee 1 | . . . 1 Guns 9 | . 3 2 4 AOE 16 | . 4 11 1 Classes Destroyed 8 | . 3 5 . Worker 2 | . 1 1 . Recycler 1 | . . 1 . Operator 1 | . . 1 . Watcher 2 | . 1 1 . Swarmer 8 | . . 4 4 Grunt 16 | . 7 7 2 Duelist 1 | . . 1 . Sentry 2 | . . 1 1 Best Kill Streak 5 | . 4 5 4 Combat Bots Only 4 | . 3 4 4 Max Kills in Single Turn 3 | . 3 3 2 Gunslinging . | . . . . Exploded 2 | . 2 2 1 Melee 1 | . . . 1 Uniques/NPCs Destroyed . | . . . . Combat | -11 -10 -9 -8 -------- Run | Yrd Mat Mat Mat Hostile Shots Fired 300 | . 27 41 232 Missed 112 | . 8 13 91 Damage Taken 2660 | . 265 370 2025 Core 725 | . 62 102 561 Absorbed by Shields . | . . . . Redirected to Shielding 51 | . 5 12 34 Ignored by Resistances 14 | . . . 14 Regen/Repaired (Parts) 31 | . 31 . . Core Remaining (%) 83 | 100 75 74 . Volleys Fired 45 | . 10 14 21 Largest 3 | . 2 3 2 Hottest 100 | . 70 100 70 Shots Fired 89 | . 20 31 38 Gun 59 | . 10 14 35 Cannon . | . . . . Launcher 30 | . 10 17 3 Special . | . . . . Kinetic 34 | . . . 34 Thermal . | . . . . Explosive 30 | . 10 17 3 Electromagnetic 25 | . 10 14 1 Robot Hit Streak 7 | . 4 4 7 Robot Miss Streak 4 | . 2 4 3 Penetration Max . | . . . . Secondary Targets . | . . . . Shots Hit Robots 51 | . 9 14 28 Core Hits 60 | . 21 29 10 Critical Kills . | . . . . Critical Parts Destroyed . | . . . . Critical Strikes . | . . . . Melee Attacks 8 | . . . 8 Impact 8 | . . . 8 Slashing . | . . . . Piercing . | . . . . Sneak Attacks . | . . . . Combat Hostiles . | . . . . Follow-up Attacks . | . . . . Damage Inflicted 2199 | . 538 915 746 Guns 539 | . 96 107 336 Cannons . | . . . . Explosions 1412 | . 442 808 162 Melee 237 | . . . 237 Ramming 11 | . . . 11 Kinetic 326 | . . . 326 Thermal 68 | . . 68 . Explosive 1344 | . 442 740 162 Electromagnetic 213 | . 96 107 10 Impact 237 | . . . 237 Slashing . | . . . . Piercing . | . . . . Highest Corruption 1 | . 1 . . Average Corruption 1 | . 1 . . Corruption Purged . | . . . . Corruption Blocked . | . . . . Overload Shots . | . . . . Overflow Damage 112 | . . 31 81 Projectiles . | . . . . Explosions 31 | . . 31 . Melee 81 | . . . 81 Knockbacks 1 | . . . 1 Impact 1 | . . . 1 Kinetic . | . . . . Secondary . | . . . . Self-Inflicted Damage 119 | . 40 74 5 Shots 6 | . 2 4 . Rammed 4 | . . . 4 Targets Rammed 4 | . . . 4 Kicked . | . . . . Crushed . | . . . . Highest Temperature 134 | . 54 71 134 Average Temperature 40 | . 26 28 61 Received Heat Transfer 942 | . 123 72 747 Siege Activations . | . . . . Robots Corrupted . | . . . . Combat Hostiles . | . . . . Parts Fried . | . . . . Impact Corruptions 4 | . . . 4 Robots Melted . | . . . . Combat Hostiles . | . . . . Parts Melted . | . . . . Heat Transferred 150 | . . 150 . Parts Sabotaged . | . . . . Parts Stolen . | . . . . Parts Stripped . | . . . . Power Chain Reactions 1 | . . 1 . Alert | -11 -10 -9 -8 ------- Run | Yrd Mat Mat Mat Peak Influence 358 | . 217 358 181 Initial 150 | . . 50 150 Average 103 | . 76 210 88 Maximum Alert Level 1 | . 1 1 . Low Security (%) 85 | 100 92 30 100 Level 1 14 | . 7 69 . Level 2 . | . . . . Level 3 . | . . . . Level 4 . | . . . . Level 5 . | . . . . High Security . | . . . . Max Security . | . . . . Squads Dispatched 4 | . 1 1 2 Investigation 3 | . 1 1 1 Extermination . | . . . . Reinforcement 1 | . . . 1 Assault . | . . . . Garrison . | . . . . Intercept . | . . . . Searches Triggered . | . . . . Construction Impeded . | . . . . Haulers Reinforced . | . . . . Active Scanning Responses . | . . . . Cargo Convoy Interrupts . | . . . . Stealth | -11 -10 -9 -8 --------- Run | Yrd Mat Mat Mat Distress Signals 1 | . 1 . . Communications Jammed . | . . . . Distress Signals . | . . . . Times Spotted 46 | . 11 16 19 Peak Tracking Total 7 | . 4 4 7 Tactical Retreats 3 | . . . 3 Traps | -11 -10 -9 -8 ------- Run | Yrd Mat Mat Mat Traps Triggered 1 | . . 1 . Indirectly . | . . . . Trap Hack Attempts . | . . . . Triggered . | . . . . Disarmed 6 | . . . 6 Reprogrammed . | . . . . Reused . | . . . . Traps Extracted . | . . . . Installed . | . . . . Triggered . | . . . . Machines | -11 -10 -9 -8 ---------- Run | Yrd Mat Mat Mat Machines Disabled 5 | . 5 . . Max in Single Turn 2 | . 2 . . Machines Repaired . | . . . . Machines Dismantled . | . . . . Machines Sabotaged . | . . . . Overloaded Fab Kills . | . . . . Hacking | -11 -10 -9 -8 --------- Run | Yrd Mat Mat Mat Machines Accessed 5 | . 2 1 2 Terminals 3 | . . 1 2 Fabricators . | . . . . Repair Stations 1 | . 1 . . Recycling Units 1 | . 1 . . Scanalyzers . | . . . . Garrison Access . | . . . . Total Hacks 21 | . 8 3 10 Successful 11 | . 3 2 6 Failed 10 | . 5 1 4 Catastrophic 1 | . 1 . . Database Lockouts . | . . . . Manual . | . . . . Terminals 13 | . . 3 10 Fabricators . | . . . . Repair Stations 4 | . 4 . . Recycling Units 4 | . 4 . . Scanalyzers . | . . . . Garrison Access . | . . . . Terminal Hacks 8 | . . 2 6 Record 1 | . . . 1 Alert Level 1 | . . . 1 Unreport Threat 1 | . . 1 . Locate Traps 1 | . . . 1 Disarm Traps 1 | . . . 1 Dispatch Records 1 | . . . 1 Hauler Manifests 1 | . . . 1 Zone Layout 1 | . . 1 . Fabricator Hacks . | . . . . Repair Station Hacks 2 | . 2 . . Scan Component 1 | . 1 . . Repair 1 | . 1 . . Recycling Unit Hacks 1 | . 1 . . Report Inventory 1 | . 1 . . Scanalyzer . | . . . . Garrison Access Hacks . | . . . . Unauthorized Hacks . | . . . . Terminals . | . . . . Fabricators . | . . . . Repair Stations . | . . . . Recycling Units . | . . . . Scanalyzers . | . . . . Garrison Access . | . . . . Data Cores Recovered . | . . . . Used . | . . . . Hacking Detections 4 | . 1 1 2 Full Trace Events 3 | . 1 1 1 Feedback Events 1 | . 1 . . Corruption 1 | . 1 . . Feedback Blocked . | . . . . Robot Schematics Acquired . | . . . . Robots Built . | . . . . Authchips . | . . . . Time . | . . . . Total Robot Build Rating . | . . . . Part Schematics Acquired . | . . . . Parts Built . | . . . . Authchips . | . . . . Time . | . . . . Total Part Build Rating . | . . . . Parts Repaired 1 | . 1 . . Time 26 | . 26 . . Parts Recycled . | . . . . Recycled Matter . | . . . . Retrieved Matter . | . . . . Retrieved Components . | . . . . Parts Scanalyzed . | . . . . Part Schematics Acquired . | . . . . Parts Damaged . | . . . . Bothacking | -11 -10 -9 -8 ------------ Run | Yrd Mat Mat Mat Used RIF Installer . | . . . . Robots Hacked . | . . . . Non-combat . | . . . . Combat . | . . . . Robot Hacks Applied . | . . . . Relay Couplers Released . | . . . . Fabnet Peak Effective % . | . . . . Robots Rewired . | . . . . Allies Hacked . | . . . . Hacks Repelled . | . . . . Allies | -11 -10 -9 -8 -------- Run | Yrd Mat Mat Mat Total Allies . | . . . . Largest Group . | . . . . Highest-Rated Group . | . . . . Highest-Rated Ally . | . . . . Total Orders . | . . . . Ally Attacks . | . . . . Total Damage . | . . . . Kills . | . . . . Allies Corrupted . | . . . . Allies Melted . | . . . . Intel | -11 -10 -9 -8 ------- Run | Yrd Mat Mat Mat Robot Analysis Total . | . . . . Derelict Logs Recovered . | . . . . Drone Launches . | . . . . Drone Recoveries . | . . . . Exploration | -11 -10 -9 -8 ------------- Run | Yrd Mat Mat Mat Turns Passed 1839 | 80 491 334 934 Spaces Moved 930 | 61 248 181 440 Core 120 | 24 . . 96 Treads 767 | 37 248 181 301 Legs . | . . . . Wheels . | . . . . Hover 43 | . . . 43 Flight . | . . . . Fastest Speed 50 | 50 160 160 50 Average Speed 167 | 116 160 160 181 Slowest Speed 480 | 160 160 160 480 Overloaded Moves . | . . . . Propulsion Burnouts . | . . . . Robots Hopped . | . . . . Cave-ins Triggered . | . . . . Exploration Rate (%) 19 | 4 28 28 19 Regions Visited 3 Branch Regions . Pre-discovered Areas . | . . . . Known Exits Taken . | . . . . Unknown Exits Taken 3 | 1 1 1 . Scrap Searched . | . . . . Spaces Dug . | . . . . Terrain Destroyed 164 | . 32 115 17 Melee . | . . . . Projectile . | . . . . AOE 164 | . 32 115 17 Terrain Rammed . | . . . . Walls Destroyed . | . . . . Machines Disabled . | . . . . Actions | -11 -10 -9 -8 --------- Run | Yrd Mat Mat Mat Total 1122 | 70 323 198 531 Wait 62 | . 41 . 21 Move 927 | 60 247 180 440 Hop . | . . . . Pick Up 35 | 5 13 2 15 Fast Attach . | . . . . Attach 23 | 5 3 2 13 Detach . | . . . . Swap 6 | . 4 . 2 Drop 12 | . 5 . 7 Fire 45 | . 10 14 21 Melee 8 | . . . 8 Ram 4 | . . . 4 Kick . | . . . . Crush . | . . . . Escape Stasis . | . . . . Rewire . | . . . . Trap . | . . . . Miscellaneous . | . . . . Route ------- -11/Scrapyard -10/Materials -9/Materials -8/Materials History --------- Turn | Location | Event 7 | -11/Scrapyard | Discovered new exit (range 15) 81 | -11/Scrapyard | Entered Materials 303 | -10/Materials | Build established: Mutant 491 | -10/Materials | Discovered new exit (range 11) 558 | -10/Materials | Repaired EM Pulse Gun 572 | -10/Materials | Entered another Materials area 572 | -9/Materials | Evolved 2 slots: Power x1, Weapon x1 866 | -9/Materials | Discovered new exit (range 7) 906 | -9/Materials | Entered another Materials area 906 | -8/Materials | Evolved 2 slots: Propulsion x1, Weapon x1 1003 | -8/Materials | Build established: Bomber 1151 | -8/Materials | Lost 3 parts (1p2w) 1401 | -8/Materials | Build established: Mutant 1679 | -8/Materials | Lost 3 parts (2n1w) 1771 | -8/Materials | Core integrity fell below 50% 1778 | -8/Materials | Core integrity fell below 20% 1808 | -8/Materials | Lost 11 parts (2p5n2u2w) 1840 | -8/Materials | Destroyed by X-57 Shotgunner with Shotgun Last Messages --------------- 01731_ X-57 Shotgunner knocked back. 01731_ Dropped Imp. Treads. 01732_ Flail destroyed. 01733_ Imp. Ion Engine destroyed. 01733_ Slug penetrates Wall. 01735_ Gravmag System destroyed. 01736_ G-47 Trooper knocked back. 01737_ Dropped Hacking Suite. 01738_ Critical hit (Burn: +37). 01738_ Dropped Reflective Plating. 01738_ Dropped Huge Storage Unit. 01738_ Critical hit (Destroy). 01738_ Gravmag System destroyed. 01771_ Slammed into X-57 Shotgunner. 01772_ X-57 Shotgunner knocked back. 01773_ K-01 Serf collects debris. 01774_ Gravmag System destroyed. 01777_ Imp. Sensor Array destroyed. 01777_ K-01 Serf collects debris. 01837_ Slammed into X-57 Shotgunner. Map ----- +----------------------------------------------------+ | ???# """ # # """ "# """ #????????????????????? | | ???# """ # # """ # """ #????????????????????? | | ???# + + # """ #????????????????????? | | ???######## ##+##### #????????????????????? | | ??????????# #???#/ !#????????????????????? | | ??????????# ########+####???????????????????? | | ??????????# #???????????????????? | | ??????????# ############## #???????????????????? | | ??????????# ## #?# #???????????????????? | | ????????### ## #?# #???????????????????? | | ???????### # #?# #???????????????????? | | ???????# # # #?# #???????????????????? | | ????????## / ### ###?????????????????? | | ????????## # # #?????????????????? | | ????????## # # #?????????????????? | | ????????### ## # T #?????????????????? | | ????????# # ############ #?????????????????? | | ????????### ###????????# #?????????????????? | | ??????????# #??????????## ##?????????????????? | | ??????????# #???????????# #??????????????????? | | ??????????# #???????????# #??????????????????? | | ??????????# #?########### #??????????????????? | | ??????????# #?# # #??????????????????? | | ??????????# #?# # #??????????????????? | | ??????##### #?# # #??????????????????? | | ??????# #?## @x #??????????????????? | | ??????# #?# x # #??????????????????? | | ??????#!! #?# # #??????????????????? | | ??????# ! #?# # #??????????????????? | | ??????#! #?# # #??????????????????? | | ??????#!! #?########### #??????????????????? | | ??????##### #???????????# #??????????????????? | | ??????????# #???????????# #??????????????????? | | ??????????# #???????????# #??????????????????? | | ???######?# #???????????# #??????????????????? | | ???# # #???????????# #??????????????????? | | ???# """ # ##########??# #??????????????????? | | ???# """ + # #??# #??????????????????? | | ???# """ # # #??# #??????????????????? | | ???# # # #??# #??????????????????? | | ???# ?# # """ #??# #??????????????????? | | ???######?# + """"" #### #??????????????????? | | ??????????# # """"" + #??????????????????? | | ??????????# # """"" #####+####????????????????? | | ??????????# # """ ## #????????????????? | | ??????????##### ## #????????????????? | | ??????????????########### #????????????????? | | ????????????????????????# "" #????????????????? | | ????????????????????????# S"" #????????????????? | | ????????????????????????# "" !#????????????????? | +----------------------------------------------------+ Best States ------------- Heat Dissipation 31 Energy Generation 19 Energy Capacity 430 Matter Stores 300 Matter Capacity 300 Sight Range 16 Robot Scan Range 15 Terrain Scan Density 10 Power Shielding 33 Evasion (%) 53 Recoil Reduction 3 Item Schematics ----------------- None Robot Schematics ------------------ None Fabricated ------------ Nothing Alien Tech Used ----------------- None Achievements -------------- None Challenges ------------ None Game ------ Seed ChainFocalBiocell Manual? 0 Play Time 00:21:20 Cumulative 14.4 hours Start 2024.04.22 @ 10:12:51 End 2024.04.22 @ 19:43:44 Sessions 2 Manual Loads 0 Difficulty Rogue Special Mode None Game No. 42 Rogue 42 Adventurer 0 Explorer 0 Win Type - Total 0 Types 0/0/0/0/0/0/0/0/0 Lore% 12 Gallery% 26 Achievement% 21 Wizard Run 0 Options --------- Layout 1 ASCII 0 Keyboard 0 Movement Mouse Keybinds 0 Fullscreen 1 Font 16/SmallcapsGlow Map View 25x20 Zoom Use 97% Tactical HUD 1 Map Filters NONE Filters NONE Steam SD RUN: 084d4c91-d5a4-4eb9-a0b4-b036a52605c3